bitfinex/quotes_ETHUSD_20240922
["timestamp","ask_amount","ask_price","bid_price","bid_amount"]
[1726974901277,1.9166,2608.8,2608.4,0.1783]
[1726974901491,1.91674,2608.6,2608.4,0.1783]
[1726974901826,24.78,2609.5,2608.4,0.1783]
[1726974901827,1.91624,2609.3,2608.4,0.1783]
[1726974901982,1.91624,2609.3,2608.5,0.07664408]
[1726974902181,1.91617,2609.4,2608.5,0.07664408]
[1726974902399,1.9164,2609.1,2608.6,0.07664463]
[1726974902582,24.78,2609.5,2608.6,0.07664463]
[1726974902782,1.91637,2609.1,2608.6,0.07664463]
[1726974903016,1.91637,2609.1,2608.4,0.1783]
[1726974903017,24.78,2609.5,2608.7,0.07664935]
[1726974903214,1.91681,2608.5,2608.4,0.1783]
[1726974904925,26.69681,2608.5,2608.4,0.1783]
[1726974905582,27.24681,2608.5,2608.4,0.1783]
[1726974905785,30.24681,2608.5,2608.4,0.1783]
[1726974906227,1.91739,2607.7,2607.6,0.0765699]
[1726974906890,26.69739,2607.7,2607.6,0.0765699]
[1726974907528,24.78,2607.7,2607.6,0.0765699]
[1726974907728,26.69739,2607.7,2607.6,0.0765699]
[1726974908401,24.78,2607.7,2607.6,0.0765699]
[1726974910720,24.78,2607.8,2607.6,0.0765699]
[1726974912595,24.78,2608.0,2607.6,0.15325567]
[1726974912790,24.78,2608.0,2607.6,2.06925567]
[1726974912991,24.78,2608.0,2607.7,1.91734]
[1726974913207,24.78,2608.0,2607.8,0.07668006]
[1726974913404,24.78,2608.0,2607.6,1.9925699]
[1726974913640,24.78,2608.0,2607.7,0.07667963]
[1726974913819,24.78,2608.6,2607.8,1.91731]
[1726974914022,26.69659,2608.8,2607.9,0.07666774]
[1726974915739,26.69659,2608.8,2607.8,4.91731]
[1726974915942,26.69659,2608.8,2607.9,1.91724]
[1726974918036,28.45037419,2608.8,2607.8,3.0]
[1726974918265,28.45039419,2608.8,2607.7,4.91739]
[1726974919079,28.45039419,2608.8,2607.6,1.9925699]
[1726974919080,1.91717,2608.1,2607.6,1.9925699]
[1726974919361,24.78,2608.1,2607.6,1.9925699]
[1726974919585,24.78,2608.1,2607.7,0.07668816]
[1726974921677,24.78,2608.1,2607.6,1.9925699]
[1726974921839,4.58685,2608.1,2607.6,1.9925699]
[1726974922039,6.50402,2608.1,2607.6,1.9925699]
[1726974922352,1.91723,2608.0,2607.6,1.9925699]
[1726974922760,1.91727,2607.9,2607.6,1.9925699]
[1726974922934,1.91732,2607.8,2607.6,1.9925699]
[1726974923138,1.91732,2607.8,2607.6,1.30762399]
[1726974923139,27.080789,2607.8,2607.6,1.30762399]
[1726974923357,1.91739,2607.7,2607.6,0.92562686]
[1726974923704,27.080789,2607.8,2607.6,0.92562686]
[1726974923705,24.78,2607.8,2607.6,0.92562686]
[1726974924254,26.69732,2607.8,2607.6,0.92562686]
[1726974924701,1.91739,2607.7,2607.6,0.92562686]
[1726974925011,4.778861,2607.7,2607.6,0.92562686]
[1726974925422,24.78,2607.8,2607.6,0.92562686]
[1726974925423,26.69732,2607.8,2607.6,0.92562686]
[1726974925571,24.78,2607.8,2607.6,0.92562686]
[1726974925772,24.78,2607.8,2607.2,1.91776]
[1726974927280,24.78,2607.8,2607.2,4.28548523]
[1726974927769,24.78,2607.8,2607.2,4.28543523]
[1726974928290,24.78,2607.8,2607.3,2.36772523]
[1726974928475,24.78,2607.8,2607.3,4.28540523]
[1726974928805,24.78,2607.8,2607.2,4.28543523]
[1726974929116,24.78,2607.8,2607.3,2.36772523]
[1726974929911,24.78,2607.8,2607.3,3.31772523]
[1726974930316,26.69731,2607.9,2607.3,2.86767]
[1726974931018,1.91731,2607.9,2607.3,2.86767]
[1726974931392,0.68746032,2609.4,2607.3,2.86767]
[1726974931393,4.24759,2609.0,2608.3,1.9169]
[1726974931599,1.91652,2608.9,2608.3,1.9169]
[1726974931778,2.341282,2608.9,2608.1,4.29362802]
[1726974931983,2.341282,2608.9,2608.4,1.91687]
[1726974931984,0.424762,2608.9,2608.4,1.91687]
[1726974932436,2.341322,2608.9,2608.3,2.37659802]
[1726974932742,2.341322,2608.9,2608.4,2.37659802]
[1726974933456,2.341322,2608.9,2608.5,2.37659802]
[1726974934335,2.341322,2608.9,2608.6,2.37659802]
[1726974934635,1.91659,2608.8,2608.6,2.37659802]
[1726974935159,0.55,2608.9,2608.6,2.37659802]
[1726974935327,2.46656,2608.9,2608.6,2.37659802]
[1726974935522,1.91666,2608.7,2608.5,2.37659802]
[1726974935717,3.137966,2608.9,2608.4,4.29341802]
[1726974935718,0.671406,2608.9,2608.4,4.29341802]
[1726974935935,5.3311,2609.0,2608.5,2.37659802]
[1726974936462,5.3311,2609.0,2608.4,2.37659802]
[1726974936663,1.91653,2608.9,2608.5,2.37659802]
[1726974936944,1.91653,2608.9,2608.4,2.37659802]
[1726974937144,1.91653,2608.9,2608.4,2.38868309]
[1726974937925,1.91659,2608.8,2608.4,2.38868309]
[1726974938130,3.83311,2608.9,2608.3,2.38868309]
[1726974938325,1.91653,2608.9,2608.2,4.30565309]
[1726974938644,1.91653,2608.9,2608.2,6.22262309]
[1726974938947,1.91653,2608.9,2608.3,1.91695]
[1726974939147,1.91653,2608.9,2608.2,4.30565309]
[1726974939348,1.91653,2608.9,2608.2,1.91697]
[1726974939789,3.83311,2608.9,2608.2,1.91697]
[1726974939945,1.91653,2608.9,2608.2,1.91697]
[1726974940265,3.83311,2608.9,2608.2,1.91697]
[1726974940473,1.91653,2608.9,2608.2,1.91697]
[1726974940692,5.3311,2609.0,2608.2,1.91697]
[1726974940851,7.24759,2609.0,2608.4,1.91683]
[1726974941455,1.91651,2608.9,2608.4,1.91683]
[1726974941768,3.55,2609.0,2608.2,3.83395]
[1726974941967,0.55,2609.0,2608.2,1.91697]
[1726974942279,1.91651,2608.9,2608.2,1.91697]
[1726974942878,1.91651,2608.9,2608.2,3.83394]
[1726974943079,1.91651,2608.9,2608.2,1.91697]
[1726974943291,1.91651,2608.9,2608.4,1.91687]
[1726974943579,1.91651,2608.9,2608.2,3.83394]
[1726974943749,1.91651,2608.9,2608.2,1.91697]
[1726974944152,1.91651,2608.9,2608.3,1.91691]
[1726974947588,3.83308,2608.9,2608.2,1.91697]
[1726974947756,1.91651,2608.9,2608.2,1.91697]
[1726974947958,2.379463,2608.9,2608.2,1.91697]
[1726974948787,2.379463,2608.9,2608.3,1.91694]
[1726974953597,0.79664,2609.0,2608.5,1.91679]
[1726974953797,2.71311,2609.0,2608.5,1.91679]
[1726974954505,0.79664,2609.0,2608.5,1.91679]
[1726974958467,0.79664,2609.0,2607.4,0.0200057]
[1726974958717,1.91677,2608.6,2607.5,0.07668025]
[1726974959004,1.91692,2608.4,2607.5,0.07668025]
[1726974959162,1.91692,2608.4,2607.4,0.0200057]
[1726974959768,1.917,2608.3,2607.4,0.0200057]
[1726974960084,0.383392,2608.2,2607.4,0.0200057]
[1726974960468,2.300422,2608.2,2607.4,0.09669426]
[1726974960803,1.91719,2608.0,2607.4,0.0200057]
[1726974961006,24.78,2607.9,2607.4,0.0200057]
[1726974961816,1.91733,2607.8,2607.4,0.0200057]
[1726974964010,5.003832,2607.8,2607.4,0.0200057]
[1726974964568,6.921222,2607.8,2607.4,0.0200057]
[1726974964778,1.91733,2607.8,2607.4,0.0200057]
[1726974967396,1.91741,2607.7,2607.4,0.0200057]
[1726974968296,1.91733,2607.8,2607.4,0.0200057]
[1726974968484,24.78,2607.9,2607.6,1.9174]
[1726974968685,24.78,2607.9,2607.8,1.91732]
[1726974969904,2.3023,2608.9,2607.6,1.99407629]
[1726974969905,24.78,2608.2,2607.6,1.99407629]
[1726974970111,24.78,2608.2,2607.9,1.91719]
[1726974973318,24.78,2608.2,2608.0,1.91713]
[1726974973612,24.78,2608.5,2608.0,1.91713]
[1726974973915,24.78,2608.5,2607.9,1.91719]
[1726974974111,24.78,2608.5,2608.1,1.91707]
[1726974974314,24.78,2608.5,2607.9,1.91719]
[1726974974687,24.78,2608.5,2608.0,1.91712]
[1726974975422,24.78,2608.5,2608.1,0.07668031]
[1726974975588,24.78,2608.5,2608.4,1.91688]
[1726974975984,24.78,2609.0,2608.8,1.91658]
[1726974976186,9.34603,2609.6,2608.8,3.83311]
[1726974976187,1.91616,2609.4,2608.8,3.83311]
[1726974976494,34.12603,2609.6,2609.0,1.91644]
[1726974976681,30.5342859,2609.6,2609.0,1.91644]
[1726974976887,24.78,2609.6,2609.4,1.91609]
[1726974977085,24.78,2609.6,2609.2,1.91622]
[1726974977297,24.78,2609.6,2609.0,1.91642]
[1726974977685,26.69602,2609.6,2609.0,1.91642]
[1726974977885,26.69602,2609.6,2609.1,1.91636]
[1726974977886,24.78,2609.6,2609.1,1.91636]
[1726974978398,24.78,2609.6,2609.0,1.91642]
[1726974978399,27.44959,2609.6,2609.0,1.91642]
[1726974978597,27.44959,2609.6,2608.8,1.91658]
[1726974978598,1.91612,2609.5,2608.8,1.91658]
[1726974978934,1.91615,2609.4,2608.8,1.91658]
[1726974979218,1.91615,2609.4,2608.6,1.91668]
[1726974979406,1.91615,2609.4,2608.7,1.9166]
[1726974979615,5.044325,2609.4,2608.7,1.9166]
[1726974980309,5.044325,2609.4,2608.8,1.91658]
[1726974981385,0.55,2609.2,2608.5,1.9168]
[1726974981636,4.38271,2609.2,2608.5,1.9168]
[1726974981817,1.91637,2609.1,2608.5,1.9168]
[1726974982125,1.91637,2609.1,2608.4,1.91684]
[1726974984531,1.91637,2609.1,2608.4,1.91683]
[1726974984907,1.91648,2609.0,2608.4,1.91683]
[1726974985120,1.91661,2608.8,2608.2,9.29699]
[1726974985325,1.91648,2609.0,2608.2,9.29699]
[1726974985635,2.29128185,2609.0,2608.2,9.29699]
[1726974986809,1.91664,2608.8,2608.2,1.917]
[1726974987123,27.07128185,2609.0,2608.3,1.91691]
[1726974987290,4.81528619,2608.9,2608.3,1.91691]
[1726974987693,1.91668,2608.7,2608.1,1.91708]
[1726974987905,4.81528619,2608.9,2608.1,1.91704]
[1726974988102,4.81528619,2608.9,2608.3,1.91694]
[1726974989127,6.73185619,2608.9,2608.3,1.91694]
[1726974989330,3.1886658,2608.8,2608.1,1.91704]
[1726974989527,1.9167,2608.7,2608.1,1.91704]
[1726974990403,1.91681,2608.5,2607.9,9.29722]
[1726974990638,24.78,2608.4,2607.9,1.91722]
[1726974990946,24.78,2608.4,2607.9,3.83441]
[1726974991635,24.78,2608.4,2608.0,1.91715]
[1726974993145,24.78,2608.4,2607.8,3.83459]
[1726974993299,24.78,2608.4,2607.9,1.91719]
[1726974993504,24.78,2608.4,2608.0,1.91717]
[1726974994751,1.91711,2608.1,2607.5,7.38]
[1726974995037,1.91711,2608.1,2607.5,9.2975]
[1726974995242,1.91711,2608.1,2607.4,1.9375557]
[1726974995243,1.91725,2607.9,2607.4,1.9375557]
[1726974995416,24.78,2607.9,2607.4,1.9375557]
[1726974995809,26.69726,2607.9,2607.4,0.0200057]
[1726974996047,29.558697,2607.9,2607.4,0.0200057]
[1726974996274,29.558697,2607.9,2607.4,1.9376057]
[1726974997484,29.558697,2607.9,2607.4,0.0200057]
[1726975001998,1.91734,2607.8,2607.4,0.0200057]
[1726975002401,29.558697,2607.9,2607.4,0.0200057]
[1726975004121,24.78,2607.9,2607.4,0.0200057]
[1726975004344,24.78,2607.9,2607.6,1.91744]
[1726975004492,24.78,2607.9,2607.7,1.91735]
[1726975004692,24.78,2607.9,2607.8,1.91732]
[1726975005102,24.78,2608.2,2607.8,1.91732]
[1726975005331,24.78,2608.2,2607.6,1.91742]
[1726975005627,24.78,2608.2,2607.7,1.91738]
[1726975006426,1.91716,2608.1,2607.4,0.0200057]
[1726975006623,1.91729,2607.9,2607.4,0.0200057]
[1726975007012,3.83459,2607.9,2607.4,0.0200057]
[1726975007236,1.91729,2607.9,2607.4,0.0200057]
[1726975007536,2.300733,2607.9,2607.4,0.0200057]
[1726975007739,4.218053,2607.9,2607.4,0.0200057]
[1726975007892,2.300733,2607.9,2607.4,0.0200057]
[1726975010729,29.366758,2608.2,2607.6,1.91741]
[1726975011027,29.366758,2608.2,2607.7,1.91735]
[1726975011028,27.449698,2608.2,2607.7,1.91735]
[1726975011201,24.78,2608.1,2607.7,1.91735]
[1726975015055,24.78,2608.1,2607.7,1.91734]
[1726975016990,24.78,2608.2,2607.7,1.91734]
[1726975020147,26.69705,2608.2,2607.5,3.8553929]
[1726975020391,26.69705,2608.2,2607.5,0.0203929]
[1726975020392,1.9173,2607.9,2607.5,0.0203929]
[1726975023663,3.8346,2607.9,2607.5,0.0203929]
[1726975024093,1.91733,2607.8,2607.5,0.0203929]
[1726975026087,26.69733,2607.8,2607.5,0.0203929]
[1726975026387,24.78,2607.8,2607.5,0.0203929]
[1726975027493,27.44973,2607.8,2607.5,0.0203929]
[1726975029085,29.3671,2607.8,2607.5,0.0203929]
[1726975029730,1.91744,2607.7,2607.5,0.0203929]
[1726975029890,1.91747,2607.6,2607.5,0.0203929]
[1726975030049,2.46747,2607.6,2607.5,0.0203929]
[1726975030249,5.882044,2607.6,2607.5,0.0203929]
[1726975034288,24.78,2607.7,2607.5,0.0203929]
[1726975034488,2.4911,2608.1,2607.5,0.0203929]
[1726975034489,24.78,2608.1,2607.9,1.91725]
[1726975034733,24.78,2608.1,2608.0,1.91717]
[1726975034927,24.78,2608.7,2608.2,1.91697]
[1726975035130,27.76392146,2608.6,2608.2,3.83394]
[1726975035331,24.78,2608.6,2608.2,1.91697]
[1726975035507,24.78,2608.6,2607.8,0.07668015]
[1726975035834,24.78,2608.6,2608.0,1.9171]
[1726975036395,26.69676,2608.6,2608.0,3.83422]
[1726975036593,24.78,2608.6,2608.1,1.91709]
[1726975036932,24.78,2608.6,2608.0,1.9171]
[1726975037103,25.69541015,2608.6,2608.0,1.9171]
[1726975037432,1.91681,2608.5,2607.9,1.91724]
[1726975037589,27.61221015,2608.6,2607.9,1.91724]
[1726975037796,1.917,2608.3,2607.7,9.29735]
[1726975038517,25.69541015,2608.6,2607.8,0.07668819]
[1726975038724,24.78,2608.6,2608.1,1.91703]
[1726975039704,26.69675,2608.6,2608.1,1.91703]
[1726975039903,24.78,2608.6,2608.1,1.91703]
[1726975040543,26.69674,2608.6,2607.9,3.8344]
[1726975040852,1.91689,2608.4,2607.7,7.38]
[1726975041000,1.91689,2608.4,2607.7,9.29737]
[1726975041001,1.91696,2608.3,2607.7,9.29737]
[1726975041335,1.91689,2608.4,2607.8,1.9173]
[1726975041637,1.91689,2608.4,2607.8,3.83456]
[1726975041850,1.91689,2608.4,2607.8,1.91726]
[1726975044538,26.69677,2608.6,2607.9,1.91724]
[1726975044844,1.91682,2608.5,2607.9,1.91724]
[1726975045137,0.55,2608.5,2607.7,9.29738]
[1726975045536,1.917,2608.3,2607.7,7.38]
[1726975046040,1.917,2608.3,2607.7,9.29739]
[1726975046622,24.78,2608.2,2607.6,1.91741]
[1726975049421,24.78,2608.2,2607.6,3.83482]
[1726975049619,1.91712,2608.1,2607.6,1.91741]
[1726975049819,1.91721,2608.0,2607.5,0.0203929]
[1726975050113,1.91712,2608.1,2607.5,0.0203929]
[1726975050317,5.064669,2608.1,2607.5,0.0203929]
[1726975050626,6.981839,2608.1,2607.5,0.0203929]
[1726975051030,5.064669,2608.1,2607.5,0.0203929]
[1726975051206,6.981829,2608.1,2607.5,0.0203929]
[1726975051942,1.91734,2607.8,2607.5,0.0203929]
[1726975052287,1.9172,2608.0,2607.5,0.0203929]
[1726975052404,24.78,2608.0,2607.5,1.9379029]
[1726975052603,24.78,2608.0,2607.5,0.0203929]
[1726975053147,26.69718,2608.0,2607.5,0.0203929]
[1726975054153,1.91732,2607.8,2607.5,0.0203929]
[1726975054325,26.69718,2608.0,2607.5,0.0203929]
[1726975054506,29.8733589,2608.0,2607.5,0.0203929]
[1726975055918,31.7905989,2608.0,2607.5,0.0203929]
[1726975056127,29.8733589,2608.0,2607.5,0.0203929]
[1726975056332,1.91737,2607.8,2607.5,0.0203929]
[1726975057970,29.8733689,2608.0,2607.5,0.0203929]
[1726975057971,1.91726,2607.9,2607.5,0.0203929]
[1726975058322,26.69726,2607.9,2607.5,0.0203929]
[1726975059377,28.85112018,2607.9,2607.5,0.0203929]
[1726975062459,28.85112018,2607.9,2607.5,1.9379329]
[1726975062460,24.78,2607.9,2607.5,1.9379329]
[1726975062769,24.78,2607.9,2607.8,1.91732]
[1726975064260,24.78,2608.4,2607.8,1.91732]
[1726975064457,24.78,2608.4,2607.9,1.91723]
[1726975067530,24.78,2608.4,2607.7,1.91734]
[1726975067531,1.91696,2608.3,2607.7,3.83469]
[1726975067775,1.91696,2608.3,2607.8,1.9173]
[1726975068272,4.778341,2608.3,2607.7,1.91734]
[1726975068465,1.91705,2608.2,2607.6,1.91746]
[1726975069129,4.778341,2608.3,2607.7,1.91736]
[1726975069846,1.91696,2608.3,2607.7,1.91735]
[1726975070168,24.78,2608.2,2607.7,1.91735]
[1726975071254,26.69705,2608.2,2607.7,1.91735]
[1726975071433,24.78,2608.2,2607.7,1.91735]
[1726975075107,24.78,2608.2,2607.7,3.8347]
[1726975075260,24.78,2608.2,2607.9,1.9172]
[1726975075466,24.78,2608.2,2608.1,1.9171]
[1726975076206,24.78,2608.6,2608.1,1.9171]
[1726975076766,24.78,2608.6,2608.2,1.917]
[1726975076988,22.863,2608.2,2608.0,1.91717]
[1726975077595,22.863,2608.2,2608.1,1.9171]
[1726975081369,21.353,2608.2,2608.1,1.9171]
[1726975082469,21.353,2608.2,2608.1,4.9171]
[1726975083897,21.353,2608.2,2608.1,4.99377366]
[1726975084783,21.353,2608.2,2608.1,4.9171]
[1726975085310,21.19232382,2608.2,2608.1,5.4671]
[1726975085719,21.19232382,2608.2,2608.1,5.54376298]
[1726975087985,21.03232382,2608.2,2608.1,5.54376298]
[1726975088894,21.03232382,2608.2,2608.1,5.4671]
[1726975089099,21.03232382,2608.2,2608.1,4.9171]
[1726975089303,5.19106757,2608.2,2608.1,5.4671]
[1726975089514,0.018156,2609.8,2609.7,1.91592]
[1726975089822,4.208156,2609.8,2609.7,1.99253129]
[1726975090356,4.208156,2609.8,2609.7,1.91592]
[1726975091031,4.208156,2609.8,2609.7,5.54254832]
[1726975091225,4.208156,2609.8,2609.7,1.99254832]
[1726975091430,4.208156,2609.8,2609.7,1.91592]
[1726975093451,4.208156,2609.8,2609.7,6.15206448]
[1726975093631,4.208156,2609.8,2609.7,5.46592]
[1726975093827,4.208156,2609.8,2609.7,2.46592]
[1726975096138,4.208156,2609.8,2609.7,1.91592]
[1726975096522,4.208156,2609.8,2609.7,2.46592]
[1726975097933,4.208156,2609.8,2609.7,2.54253839]
[1726975098138,4.208156,2609.8,2609.7,5.54253839]
[1726975100723,4.208156,2609.8,2609.7,4.91592]
[1726975100926,4.208156,2609.8,2609.7,1.91592]
[1726975101226,4.208156,2609.8,2609.7,1.99254083]
[1726975102060,4.208156,2609.8,2609.7,1.91592]
[1726975108653,2.27408,2609.7,2609.6,3.0]
[1726975108857,2.27408,2609.7,2609.6,4.916]
[1726975110663,0.35408,2609.7,2609.5,1.916]
[1726975110848,0.35408,2609.7,2609.6,1.916]
[1726975112420,0.35408,2609.7,2609.5,1.916]
[1726975112779,0.35408,2609.7,2609.6,1.916]
[1726975112968,0.35408,2609.7,2609.5,1.916]
[1726975113354,0.35408,2609.7,2609.6,1.916]
[1726975113553,0.35408,2609.7,2609.5,1.916]
[1726975114271,0.35408,2609.7,2609.3,1.91618]
[1726975114580,0.018156,2609.8,2609.5,3.47796]
[1726975114773,0.018156,2609.8,2609.5,1.56194]
[1726975115179,0.018156,2609.8,2609.3,3.83234]
[1726975115354,0.018156,2609.8,2609.6,1.91598]
[1726975118293,0.018156,2609.8,2609.7,1.99254908]
[1726975120804,0.018156,2609.8,2609.7,1.91592]
[1726975121183,0.018156,2609.8,2609.7,1.99252804]
[1726975123400,1.938156,2609.8,2609.7,1.91592]
[1726975123717,1.938156,2609.8,2609.7,1.99252655]
[1726975125709,1.938156,2609.8,2609.7,1.91592]
[1726975127985,1.938156,2609.8,2609.7,2.46592]
[1726975128200,1.938156,2609.8,2609.7,4.84790499]
[1726975128395,1.938156,2609.8,2609.7,2.46592]
[1726975132428,1.938156,2609.8,2609.7,7.85118323]
[1726975133202,1.938156,2609.8,2609.7,7.85173479]
[1726975134498,1.938156,2609.8,2609.7,4.91592]
[1726975134980,1.938156,2609.8,2609.7,1.91592]
[1726975135097,1.938156,2609.8,2609.6,1.916]
[1726975135098,0.00408,2609.7,2609.6,1.916]
[1726975136440,0.00408,2609.7,2609.6,4.99262404]
[1726975139121,0.00408,2609.7,2609.6,4.916]
[1726975139922,0.00408,2609.7,2609.6,4.99262434]
[1726975142861,0.00408,2609.7,2609.6,4.916]
[1726975145256,0.00408,2609.7,2609.6,4.99261688]
[1726975151484,0.00408,2609.7,2609.6,4.916]
[1726975152080,0.00408,2609.7,2609.6,4.9926168]
[1726975153365,0.00408,2609.7,2609.6,6.68945019]
[1726975157595,0.00408,2609.7,2609.6,6.08189418]
[1726975158614,0.00408,2609.7,2609.6,6.68895471]
[1726975160865,0.00408,2609.7,2609.6,6.68907567]
[1726975163101,0.00408,2609.7,2609.6,6.61245887]
[1726975164206,0.00408,2609.7,2609.6,9.90698531]
[1726975165389,0.00408,2609.7,2609.6,9.90737304]
[1726975167108,0.00408,2609.7,2609.6,6.61245887]
[1726975167408,0.00408,2609.7,2609.6,9.98397427]
[1726975167599,0.00408,2609.7,2609.6,9.90737304]
[1726975169582,0.00408,2609.7,2609.6,6.61245887]
[1726975170563,0.00408,2609.7,2609.6,6.08187866]
[1726975170979,0.00408,2609.7,2609.6,9.37829223]
[1726975171195,0.00408,2609.7,2609.6,9.30169095]
[1726975171408,0.00408,2609.7,2609.6,6.00527738]
[1726975172007,0.00408,2609.7,2609.6,9.50581114]
[1726975172525,0.00408,2609.7,2609.6,12.80222471]
[1726975173006,0.00408,2609.7,2609.6,9.50581114]
[1726975173309,0.00408,2609.7,2609.6,11.75820977]
[1726975174209,0.00408,2609.7,2609.6,8.96653376]
[1726975175267,0.018156,2609.8,2609.6,13.0063449]
[1726975175472,0.0385489,2610.6,2610.5,1.91534]
[1726975175719,0.0385489,2610.6,2610.5,4.9919304]
[1726975175868,0.0385489,2610.6,2610.5,7.38305024]
[1726975176073,0.0385489,2610.6,2610.5,4.9919304]
[1726975176293,2.3484489,2610.6,2610.5,4.91534]
[1726975178601,0.0385489,2610.6,2610.5,4.91534]
[1726975179136,0.0385489,2610.6,2610.5,4.99193558]
[1726975180499,0.0385489,2610.6,2610.5,4.91534]
[1726975180689,0.0385489,2610.6,2610.5,4.99193582]
[1726975182432,0.0385489,2610.6,2610.5,5.94193582]
[1726975186940,0.0385489,2610.6,2610.5,5.86534]
[1726975187137,0.0385489,2610.6,2610.5,5.941934]
[1726975188943,0.0385489,2610.6,2610.5,5.86534]
[1726975189326,0.0385489,2610.6,2610.5,5.94193786]
[1726975191514,0.0385489,2610.6,2610.5,5.86534]
[1726975191937,0.0385489,2610.6,2610.5,5.941938]
[1726975193245,0.0385489,2610.6,2610.5,5.94193575]
[1726975196062,0.0385489,2610.6,2610.5,8.3320808]
[1726975196248,0.0385489,2610.6,2610.5,8.25548505]
[1726975196458,0.0385489,2610.6,2610.5,8.25790553]
[1726975199717,0.0385489,2610.6,2610.5,5.86534]
[1726975199919,0.0385489,2610.6,2610.5,5.9419348]
[1726975203436,0.0385489,2610.6,2610.5,8.33503072]
[1726975203753,0.0385489,2610.6,2610.5,5.86534]
[1726975204427,0.0385489,2610.6,2610.5,7.55722253]
[1726975204622,0.0385489,2610.6,2610.5,9.95031845]
[1726975204823,0.0385489,2610.6,2610.5,7.48062408]
[1726975205048,0.0385489,2610.6,2610.5,7.55721895]
[1726975208565,0.0385489,2610.6,2610.5,9.94920896]
[1726975208864,0.0385489,2610.6,2610.5,7.48062408]
[1726975209060,0.0385489,2610.6,2610.5,9.94920425]
[1726975209365,0.0385489,2610.6,2610.5,8.25746622]
[1726975210469,0.0385489,2610.6,2610.5,9.8727503]
[1726975211574,0.0385489,2610.6,2610.5,8.25746622]
[1726975212254,0.0385489,2610.6,2610.5,5.86534]
[1726975212474,0.0385489,2610.6,2610.5,5.94193701]
[1726975213167,0.0385489,2610.6,2610.5,8.25725306]
[1726975213348,0.0385489,2610.6,2610.5,5.86534]
[1726975215464,0.0385489,2610.6,2610.5,7.48062408]
[1726975215671,0.0385489,2610.6,2610.5,7.55722426]
[1726975216569,0.02096522,2610.6,2610.5,7.55722426]
[1726975220673,0.02096522,2610.6,2610.5,10.35073661]
[1726975220835,0.02096522,2610.6,2610.5,10.27413643]
[1726975225998,0.02096522,2610.6,2610.5,10.27572887]
[1726975229300,0.02096522,2610.6,2610.5,10.27568065]
[1726975229500,0.02096522,2610.6,2610.5,7.48062408]
[1726975229708,0.02096522,2610.6,2610.5,7.55721978]
[1726975230195,0.02096522,2610.6,2610.5,10.35215558]
[1726975230400,0.02096522,2610.6,2610.5,10.27555988]
[1726975231294,0.02096522,2610.6,2610.5,8.65937765]
[1726975231592,0.02096522,2610.6,2610.5,10.27466173]
[1726975233686,0.02096522,2610.6,2610.5,8.53559093]
[1726975233906,0.0385489,2611.4,2610.5,8.53559093]
[1726975233907,0.0385489,2611.4,2611.3,1.91475]
[1726975234073,0.0385489,2611.4,2611.3,9.89988169]
[1726975234271,0.0385489,2611.4,2611.3,7.58500093]
[1726975234568,0.0385489,2611.4,2611.3,11.35743528]
[1726975234771,0.0385489,2611.4,2611.3,11.28087132]
[1726975234991,0.0385489,2611.4,2611.3,9.26829475]
[1726975235209,0.0385489,2611.4,2611.3,9.86652082]
[1726975235876,0.0385489,2611.4,2611.3,7.08003408]
[1726975236092,0.0385489,2611.4,2611.3,7.15659425]
[1726975236300,0.0385489,2611.4,2611.3,9.94165033]
[1726975236508,0.0385489,2611.4,2611.3,4.91475]
[1726975236704,0.0385489,2611.4,2611.3,7.37903322]
[1726975237019,0.0385489,2611.4,2611.3,6.60660719]
[1726975237714,0.0385489,2611.4,2611.3,4.99132339]
[1726975238012,0.0385489,2611.4,2611.3,4.91475]
[1726975238224,0.0385489,2611.4,2611.3,1.91475]
[1726975238387,0.0385489,2611.4,2611.3,1.99132516]
[1726975239098,0.0385489,2611.4,2611.3,1.91475]
[1726975240221,0.0385489,2611.4,2611.3,1.99132515]
[1726975240572,0.0385489,2611.4,2611.3,1.99132459]
[1726975240777,0.0385489,2611.4,2611.3,1.91475]
[1726975242109,2.4841489,2611.4,2611.3,1.91475]
[1726975245990,2.4841489,2611.4,2611.3,4.91475]
[1726975248617,0.0385489,2611.4,2611.3,6.53003408]
[1726975248788,0.0385489,2611.4,2611.3,6.60661146]
[1726975249193,0.0385489,2611.4,2611.3,6.60660932]
[1726975249430,0.0385489,2611.4,2611.3,10.49127273]
[1726975249743,0.0385489,2611.4,2611.3,10.58451102]
[1726975249894,0.0385489,2611.4,2611.3,10.41469749]
[1726975250095,0.0385489,2611.4,2611.3,7.62973491]
[1726975250295,0.0385489,2611.4,2611.3,7.70629719]
[1726975251233,0.0385489,2611.4,2611.3,4.91475]
[1726975251439,0.0385489,2611.4,2611.3,4.99131442]
[1726975251926,0.0385489,2611.4,2611.3,8.48830711]
[1726975252122,0.0385489,2611.4,2611.3,8.41174269]
[1726975254248,0.0385489,2611.4,2611.3,4.91475]
[1726975254832,0.0385489,2611.4,2611.3,4.99133014]
[1726975255434,0.0385489,2611.4,2611.3,8.48832283]
[1726975255607,0.0385489,2611.4,2611.3,8.41174269]
[1726975260572,0.0385489,2611.4,2611.3,4.91475]
[1726975260735,0.0385489,2611.4,2611.3,4.99132341]
[1726975265226,0.0385489,2611.4,2611.3,8.47494569]
[1726975265355,0.0385489,2611.4,2611.3,7.84867145]
[1726975265546,0.0385489,2611.4,2611.3,7.92523309]
[1726975265937,0.0385489,2611.4,2611.3,5.54131164]
[1726975267465,0.0385489,2611.4,2611.3,8.30346538]
[1726975267775,0.0385489,2611.4,2611.3,8.22690374]
[1726975267958,0.0385489,2611.4,2611.3,5.84338204]
[1726975268253,0.0385489,2611.4,2611.3,5.91994169]
[1726975268452,0.0385489,2611.4,2611.3,8.30346339]
[1726975268638,0.0385489,2611.4,2611.3,8.22690374]
[1726975269583,0.0385489,2611.4,2611.3,6.39308287]
[1726975269757,0.0385489,2611.4,2611.3,6.09101049]